bitfinex-derivatives/quotes_ETHF0:USTF0_20250824
["timestamp","ask_amount","ask_price","bid_price","bid_amount"]
[1756014943975,19.94506857,4788.0,4787.9,0.4402]
[1756014944479,19.94506857,4788.0,4787.9,0.2191]
[1756014945980,20.57184857,4788.0,4787.4,0.2211]
[1756014946179,0.41786,4787.8,4787.6,0.2191]
[1756014946382,0.41791,4787.3,4787.2,0.4402]
[1756014946582,19.42391,4787.3,4787.2,0.62977632]
[1756014946784,19.006,4787.3,4787.2,1.36677632]
[1756014946985,19.006,4787.3,4787.2,1.52327632]
[1756014947582,0.4179,4787.4,4787.2,1.15258632]
[1756014947877,0.4179,4787.4,4787.3,1.52327632]
[1756014948082,19.005,4787.4,4787.3,1.52327632]
[1756014948383,19.005,4787.4,4787.3,0.40867632]
[1756014948686,19.005,4787.4,4787.3,0.62977632]
[1756014948880,19.005,4787.4,4787.3,0.7886]
[1756014949086,19.005,4787.4,4787.3,0.40868914]
[1756014949273,19.52395174,4787.4,4787.3,0.2191]
[1756014953986,0.41793,4787.1,4786.9,0.41794]
[1756014954191,0.41793,4787.1,4787.0,0.62980401]
[1756014954397,19.003,4787.1,4786.7,0.2191]
[1756014954593,0.41793,4787.0,4786.9,0.2191]
[1756014954998,0.93711062,4787.0,4786.9,0.2191]
[1756014955801,0.93711062,4787.0,4786.9,0.5967]
[1756014955999,0.93711062,4787.0,4786.9,0.9451]
[1756014956196,19.94011062,4787.0,4786.9,0.9451]
[1756014956795,19.94011062,4787.0,4786.9,0.5967]
[1756014957098,19.94011062,4787.0,4786.9,0.4402]
[1756014958001,19.94011062,4787.0,4786.9,0.2191]
[1756014958399,19.94011062,4787.0,4786.9,0.5967]
[1756014958701,19.94011062,4787.0,4786.9,1.3337]
[1756014962002,19.52118062,4787.0,4786.9,1.3337]
[1756014963405,19.52118062,4787.0,4786.9,0.2191]
[1756014964703,19.52218062,4787.0,4786.9,0.4416]
[1756014967104,19.52218062,4787.0,4786.9,0.2191]
[1756014967300,0.41898,4786.4,4786.3,0.2225]
[1756014967501,19.42098,4786.4,4786.3,0.41202241]
[1756014967701,19.42098,4786.4,4786.3,0.2225]
[1756014967901,19.42098,4786.4,4786.3,0.456]
[1756014968105,19.42098,4786.4,4786.3,0.2335]
[1756014968306,19.42098,4786.4,4786.3,0.456]
[1756014969000,19.42098,4786.4,4786.3,0.9408]
[1756014969607,19.42098,4786.4,4786.3,1.3225]
[1756014971105,0.41795,4786.9,4785.8,1.04509]
[1756014971305,0.41895,4786.9,4786.8,0.5267]
[1756014971607,19.93754941,4786.9,4786.8,1.3225]
[1756014972200,0.51959941,4786.9,4786.8,1.3225]
[1756014972399,19.002,4786.9,4786.8,1.3225]
[1756014975607,19.001,4786.9,4786.8,1.3225]
[1756014981420,19.001,4786.9,4786.8,1.51216169]
[1756014981421,0.001,4786.9,4786.8,1.51216169]
[1756014981610,0.001,4786.9,4786.4,0.2335]
[1756014981611,0.001,4786.5,4786.4,0.2335]
[1756014981811,0.41905,4785.7,4785.6,0.2335]
[1756014982016,0.41807,4785.4,4785.3,0.2225]
[1756014982218,0.41911,4785.0,4784.9,0.7492]
[1756014982715,0.41911,4785.0,4784.9,0.601]
[1756014982918,0.41911,4785.0,4784.9,0.2335]
[1756014983120,0.41911,4785.0,4784.9,0.49537011]
[1756014984408,0.001,4785.0,4784.9,0.49537011]
[1756014984613,0.001,4785.0,4784.9,1.58437011]
[1756014985115,0.001,4785.0,4784.9,1.24457011]
[1756014985707,0.001,4785.0,4784.9,1.58437011]
[1756014987622,0.41909,4785.3,4785.2,1.3225]
[1756014987919,0.41909,4785.3,4785.2,1.58437011]
[1756014988122,0.41909,4785.3,4785.2,1.3225]
[1756014988322,0.41909,4785.3,4785.2,1.58381326]
[1756014990022,0.41809,4785.3,4785.2,1.58381326]
[1756014990223,0.41809,4785.3,4785.2,1.24401326]
[1756014990420,0.41807,4785.5,4785.3,0.7958]
[1756014990619,0.41807,4785.5,4785.4,0.9408]
[1756014991324,0.41807,4785.5,4785.4,1.3225]
[1756014991621,19.41807,4785.5,4785.4,1.3225]
[1756014992823,19.0,4785.5,4785.4,1.58360348]
[1756014993523,19.0,4785.5,4785.4,0.49460348]
[1756014993723,19.0069,4785.5,4785.4,0.2335]
[1756014994917,19.0058,4785.5,4785.4,0.4686]
[1756014995523,0.0058,4785.5,4785.4,1.3271]
[1756014996024,19.0058,4785.5,4785.4,1.3271]
[1756014996222,19.0069,4785.5,4785.4,0.4686]
[1756014996422,19.0058,4785.5,4785.4,0.6185]
[1756014997024,19.0058,4785.5,4785.4,0.9531]
[1756014997527,19.0058,4785.5,4785.4,1.3271]
[1756014997916,19.0058,4785.5,4785.4,0.9925]
[1756014998116,19.0069,4785.5,4785.4,0.4686]
[1756014998322,19.0069,4785.5,4785.4,0.2335]
[1756014998819,19.0058,4785.5,4785.4,0.4686]
[1756014999628,19.0058,4785.5,4785.4,1.1815]
[1756014999828,19.0058,4785.5,4785.4,1.3271]
[1756015001626,0.0058,4785.5,4785.4,1.3271]
[1756015001832,19.0068,4785.5,4785.4,1.3271]
[1756015003131,19.0068,4785.5,4785.4,0.3834]
[1756015003331,19.0079,4785.5,4785.4,0.2335]
[1756015003835,19.0068,4785.5,4785.4,0.4686]
[1756015005529,19.0068,4785.5,4785.4,0.73239304]
[1756015005735,19.0068,4785.5,4785.4,1.59089304]
[1756015007036,0.0058,4785.5,4785.4,1.59089304]
[1756015007230,0.0015,4785.5,4785.4,1.59089304]
[1756015007537,19.0,4785.5,4785.4,1.59089304]
[1756015007731,19.0015,4785.5,4785.4,1.59089304]
[1756015008738,19.0015,4785.5,4785.4,1.5911571]
[1756015009734,0.0033,4785.5,4785.4,1.5911571]
[1756015010135,19.0033,4785.5,4785.4,1.5911571]
[1756015010330,0.0015,4785.5,4785.4,1.5911571]
[1756015010541,19.0015,4785.5,4785.4,1.5911571]
[1756015011135,19.0033,4785.5,4785.4,1.5911571]
[1756015011334,19.0058,4785.5,4785.4,1.5911571]
[1756015011537,19.0058,4785.5,4785.4,1.77284247]
[1756015011942,19.0058,4785.5,4785.4,1.77345523]
[1756015014043,19.0033,4785.5,4785.4,1.77345523]
[1756015014236,19.0015,4785.5,4785.4,1.77345523]
[1756015015239,19.0033,4785.5,4785.4,1.77345523]
[1756015015435,19.0058,4785.5,4785.4,1.50878359]
[1756015015944,19.0038,4785.5,4785.4,1.50878359]
[1756015017752,0.0058,4785.5,4785.4,1.50878359]
[1756015018345,19.0028,4785.5,4785.4,1.50878359]
[1756015018546,19.0028,4785.5,4785.4,1.508673]
[1756015019144,0.0033,4785.5,4785.4,1.508673]
[1756015019347,0.0058,4786.0,4785.9,1.74693]
[1756015019539,0.0069,4786.0,4785.9,0.2353]
[1756015019744,19.0039,4786.0,4785.9,0.2353]
[1756015022745,0.0069,4786.0,4785.9,0.4704]
[1756015023147,19.0029,4786.0,4785.9,0.4704]
[1756015024741,19.0008,4786.0,4785.9,1.3474]
[1756015025141,19.0008,4786.0,4785.9,0.4704]
[1756015025347,19.0008,4786.0,4785.9,0.6176]
[1756015025555,19.0008,4786.0,4785.9,1.3451]
[1756015027147,18.9998,4786.0,4785.9,1.3451]
[1756015027646,18.9998,4786.0,4785.9,0.4704]
[1756015028050,0.0033,4786.0,4785.9,1.3451]
[1756015028254,0.0009,4786.3,4786.2,1.3382]
[1756015028449,18.994,4786.3,4786.2,0.94119]
[1756015028644,18.9949,4786.3,4786.2,0.94119]
[1756015028856,18.994,4786.3,4786.2,0.94119]
[1756015029048,18.9949,4786.3,4786.2,1.75619]
[1756015030355,0.002,4786.6,4786.5,0.94117]
[1756015030554,18.9965,4786.6,4786.5,1.75617]
[1756015030954,18.9965,4786.6,4786.5,1.3382]
[1756015035156,19.51512969,4786.6,4786.5,1.3382]
[1756015035759,18.9955,4786.6,4786.5,1.3382]
[1756015037060,0.002,4786.6,4786.5,1.3382]
[1756015037261,18.993,4786.6,4786.5,1.3382]
[1756015037561,18.9945,4786.6,4786.5,1.3382]
[1756015038156,18.9935,4786.6,4786.5,1.3382]
[1756015038864,0.0035,4786.6,4786.5,1.3382]
[1756015040565,0.41899,4787.5,4787.4,1.191]
[1756015040758,0.42053,4787.0,4786.9,0.4635]
[1756015041062,0.0026,4786.7,4786.6,0.2334]
[1756015041259,18.9925,4786.7,4786.6,0.64487388]
[1756015041461,18.9925,4786.7,4786.6,0.99637388]
[1756015041661,18.9925,4786.7,4786.6,1.14787388]
[1756015042166,18.9925,4786.7,4786.6,1.51957388]
[1756015046171,18.9925,4786.7,4786.6,1.3382]
[1756015050473,0.0035,4786.7,4786.6,1.3382]
[1756015050773,18.9885,4786.7,4786.6,1.3382]
[1756015051469,18.9885,4786.7,4786.6,0.2334]
[1756015051673,18.9885,4786.7,4786.6,0.9665]
[1756015051867,18.9885,4786.7,4786.6,1.3382]
[1756015052475,0.0035,4786.7,4786.6,1.3382]
[1756015052774,18.9885,4786.7,4786.6,1.3382]
[1756015053174,18.9885,4786.7,4786.6,1.51954455]
[1756015055776,0.0035,4786.7,4786.6,1.16804455]
[1756015055974,18.9885,4786.7,4786.6,1.16804455]
[1756015058878,18.9885,4786.7,4786.6,1.51074455]
[1756015060380,18.9885,4786.7,4786.6,1.3294]
[1756015060585,18.9885,4786.7,4786.6,1.51093786]
[1756015061484,0.0035,4786.7,4786.6,1.51095992]
[1756015068691,0.0009,4786.7,4786.6,1.51095992]
[1756015070496,0.41793,4787.0,4786.9,0.5176]
[1756015070692,0.41793,4787.0,4786.9,1.3083]
[1756015070887,0.93756848,4787.0,4786.9,1.3083]
[1756015071294,0.93756848,4787.0,4786.9,1.49008857]
[1756015071888,19.92056848,4787.0,4786.9,1.49008857]
[1756015080801,19.92056848,4787.0,4786.9,1.49008674]
[1756015080996,19.92101125,4787.0,4786.9,1.49008674]
[1756015085597,0.94001125,4787.0,4786.9,1.49008674]
[1756015085802,19.91801125,4787.0,4786.9,1.49008674]
[1756015088004,0.94001125,4787.0,4786.9,1.49008674]
[1756015088204,19.91701125,4787.0,4786.9,1.49008674]
[1756015089704,19.91701125,4787.0,4786.9,1.49007401]
[1756015090405,0.94001125,4787.0,4786.9,1.49007401]
[1756015090705,19.91701125,4787.0,4786.9,1.49007401]
[1756015094808,19.91701125,4787.0,4786.9,1.40955733]
[1756015095009,0.94001125,4787.0,4786.9,1.75895733]
[1756015095207,19.91601125,4787.0,4786.9,1.75895733]
[1756015095408,19.91601125,4787.0,4786.9,0.66905733]
[1756015095705,19.91601125,4787.0,4786.9,0.26218332]
[1756015097013,19.91601125,4787.0,4786.9,0.49308332]
[1756015099606,19.91601125,4787.0,4786.9,0.2309]
[1756015099806,19.91601125,4787.0,4786.9,0.49299115]
[1756015100612,19.91601125,4787.0,4786.9,0.71869115]
[1756015100816,19.91601125,4787.0,4786.9,1.06809115]
[1756015101112,19.91601125,4787.0,4786.9,1.21489115]
[1756015104111,19.91401125,4787.0,4786.9,1.21489115]
[1756015104510,19.91401125,4787.0,4786.9,0.71869115]
[1756015105215,19.91401125,4787.0,4786.9,0.49299115]
[1756015106816,19.91401125,4787.0,4786.9,0.71869115]
[1756015107721,19.91401125,4787.0,4786.9,1.28579115]
[1756015108115,0.94001125,4787.0,4786.9,1.58059115]
[1756015108316,19.91301125,4787.0,4786.9,1.58059115]
[1756015108515,19.91301125,4787.0,4786.9,0.71869115]
[1756015109516,19.91301125,4787.0,4786.9,0.26209115]
[1756015109917,0.41795,4786.8,4786.7,0.2309]
[1756015110117,0.93803125,4786.8,4786.7,0.49290449]
[1756015110314,0.93803125,4786.8,4786.7,0.49290282]
[1756015113122,0.93803125,4786.8,4786.7,0.26200282]
[1756015113415,0.93803125,4786.8,4785.3,0.41807]
[1756015113416,0.41803,4785.9,4785.8,0.2309]
[1756015113618,19.90914909,4785.9,4785.8,0.2309]
[1756015116521,19.39003,4785.9,4785.8,0.2309]
[1756015118420,0.41805,4785.6,4785.5,0.2257]
[1756015118621,0.41811,4784.9,4784.8,0.2352]
[1756015118813,19.41011,4784.9,4784.8,1.2027]
[1756015119124,19.41011,4784.9,4784.8,1.3603]
[1756015120222,18.992,4784.9,4784.1,0.09615083]
[1756015120414,18.992,4784.9,4784.1,0.84405083]
[1756015120415,0.41817,4784.2,4784.1,0.84405083]
[1756015120621,19.54017,4784.2,4784.1,1.45645083]
[1756015121222,19.54017,4784.2,4784.1,0.09615083]
[1756015123030,19.54017,4784.2,4784.1,1.45645083]
[1756015123031,19.54717,4784.2,4784.1,1.45645083]
[1756015123325,19.13,4784.4,4784.3,1.3603]
[1756015123513,0.41815,4784.5,4784.3,0.5392]
[1756015123713,19.142,4784.6,4784.5,0.8211]
[1756015123923,19.142,4784.6,4784.5,1.3603]
[1756015134631,1.04508,4785.9,4784.1,0.09615083]
[1756015134632,0.41812,4784.9,4784.8,0.5392]
[1756015134836,0.41812,4784.9,4784.8,1.3603]
[1756015138835,1.04514,4785.6,4784.8,0.5392]
[1756015139137,0.41809,4785.2,4785.1,1.3603]
[1756015141742,0.41809,4785.2,4785.1,1.0029]
[1756015142435,0.41809,4785.2,4785.1,1.3603]
[1756015145442,19.51809,4785.2,4785.1,1.3603]
[1756015146946,19.1,4785.2,4785.1,1.3603]
[1756015147549,0.41809,4785.3,4785.1,1.3603]
[1756015147842,0.41809,4785.3,4785.2,1.3315]
[1756015148039,19.50809,4785.3,4785.2,1.3315]
[1756015150346,0.41811,4784.9,4784.8,0.231]
[1756015150545,0.41815,4784.5,4784.4,0.2313]
[1756015150743,19.50415,4784.5,4784.4,0.2313]
[1756015150942,0.41817,4784.2,4784.1,0.32745083]
[1756015151141,0.41817,4784.2,4784.1,0.89118484]
[1756015151440,0.41817,4784.2,4784.1,0.70905083]
[1756015151746,0.41817,4784.2,4784.1,0.55845083]
[1756015151947,0.41817,4784.2,4784.1,0.32715083]
[1756015153142,0.41817,4784.2,4784.1,0.55845083]
[1756015154147,0.41817,4784.2,4784.1,0.70905083]
[1756015154343,0.41817,4784.2,4784.1,0.09615083]
[1756015154545,0.41817,4784.2,4784.1,1.03985083]
[1756015154837,0.41817,4784.2,4784.1,1.42765083]
[1756015155043,19.50017,4784.2,4784.1,1.42765083]
[1756015156748,0.41817,4784.2,4784.1,1.42765083]
[1756015161847,2.09041,4785.3,4784.1,1.42765083]
[1756015161848,1.04516,4785.6,4784.1,0.09615083]
[1756015162050,0.41817,4784.3,4784.2,1.3315]
[1756015162254,0.41817,4784.3,4784.2,1.51361574]
[1756015164760,0.41815,4784.5,4784.2,1.51361574]
[1756015164951,0.41815,4784.5,4784.4,0.3071]
[1756015165152,19.49014,4784.7,4784.4,1.3315]
[1756015165364,0.4181,4785.1,4785.0,1.3315]
[1756015165555,19.4881,4785.1,4785.0,0.9923]
[1756015165856,20.00718398,4785.1,4785.0,0.7694]
[1756015166056,20.00718398,4785.1,4785.0,0.6129]
[1756015167554,0.93718398,4785.1,4785.0,1.3315]
[1756015167760,19.4851,4785.1,4785.0,1.3315]
[1756015168153,19.4851,4785.1,4785.0,0.9923]
[1756015168460,19.4851,4785.1,4785.0,0.4623]
[1756015169359,19.4875,4785.1,4785.0,0.4623]
[1756015170360,19.4875,4785.1,4785.0,0.231]
[1756015171664,19.4886,4785.1,4785.0,0.231]
[1756015173364,20.00789416,4785.1,4785.0,0.231]
[1756015174066,0.42012,4784.8,4784.7,0.2317]
[1756015175458,0.42012,4784.8,4784.7,0.4548]
[1756015176169,0.42012,4784.8,4784.7,0.9279]
[1756015176465,0.42012,4784.8,4784.7,1.3155]
[1756015177365,19.46712,4784.8,4784.7,1.3155]
[1756015178066,0.42012,4784.8,4784.7,1.3155]
[1756015178367,19.46512,4784.8,4784.7,1.3155]
[1756015178563,0.42012,4784.8,4784.7,1.3155]
[1756015178765,19.46512,4784.8,4784.7,1.3155]
[1756015178961,0.41812,4784.8,4784.7,1.3155]
[1756015179361,19.46212,4784.8,4784.7,1.3155]
[1756015181674,0.41812,4784.8,4784.7,1.3155]
[1756015181873,19.46412,4784.8,4784.7,1.3155]
[1756015182075,19.46502,4784.8,4784.7,1.3155]
[1756015182373,19.46612,4784.8,4784.7,1.3155]
[1756015183174,0.41812,4784.8,4784.7,1.3155]
[1756015183376,19.46312,4784.8,4784.7,1.3155]
[1756015183778,19.46512,4784.8,4784.7,1.3155]
[1756015184977,19.46502,4784.8,4784.7,1.3155]
[1756015185179,19.46612,4784.8,4784.7,1.3155]
[1756015185976,1.04513,4785.7,4784.7,1.3155]
[1756015186275,0.4181,4785.1,4785.0,0.5338]
[1756015186481,19.4691,4785.1,4785.0,1.3155]
[1756015186680,19.98893959,4785.1,4785.0,1.3155]
[1756015186875,19.98983959,4785.1,4785.0,1.3155]
[1756015187483,19.99093959,4785.1,4785.0,1.3155]
[1756015187677,19.56983959,4785.1,4785.0,1.3155]
[1756015188176,19.57183959,4785.1,4785.0,1.49791519]
[1756015188378,0.41807,4785.5,4785.0,0.96411519]
[1756015188585,0.42004,4785.8,4785.7,1.3155]
[1756015188782,19.053,4785.8,4785.7,1.3155]
[1756015188978,19.57287171,4785.8,4785.7,1.3155]
[1756015189176,0.51987171,4785.8,4785.7,1.4978948]
[1756015189378,30.113,4787.5,4786.4,0.7655]
[1756015189379,0.41998,4786.5,4786.4,0.7655]
[1756015189580,19.47498,4786.5,4786.4,1.3155]
[1756015189784,19.99233807,4786.5,4786.4,1.3155]
[1756015190185,0.51935807,4786.5,4786.4,1.3155]
[1756015190574,0.41792,4787.2,4786.7,0.41795]
[1756015190776,0.0009,4786.8,4786.7,0.95175]
[1756015190974,0.0009,4786.8,4786.7,1.73345]
[1756015191180,0.002,4786.8,4786.7,1.3155]
[1756015193679,19.0519,4786.8,4786.7,1.3155]
[1756015196089,19.053,4786.8,4786.7,1.3155]
[1756015196588,0.002,4786.8,4786.7,1.3155]
[1756015196886,19.048,4786.8,4786.7,1.3155]
[1756015197287,19.045,4786.8,4786.7,1.3155]
[1756015197881,0.002,4786.8,4786.7,1.3155]
[1756015198182,19.042,4786.8,4786.7,1.3155]
[1756015198388,0.002,4786.8,4786.7,1.3155]
[1756015198587,19.041,4786.8,4786.7,1.3155]
[1756015199688,19.039,4786.8,4786.7,1.3155]
[1756015200086,19.037,4786.8,4786.7,1.3155]
[1756015200488,30.53089,4787.5,4787.4,1.3155]
[1756015200682,49.56689,4787.5,4787.4,1.3155]
[1756015200883,0.41992,4787.1,4787.0,0.4548]
[1756015201079,0.002,4787.1,4786.7,0.2231]
[1756015201284,0.41995,4786.8,4786.7,0.2317]
[1756015201489,19.45695,4786.8,4786.7,0.2317]
[1756015202185,0.41997,4786.5,4786.4,0.2317]
[1756015202385,0.42001,4786.1,4786.0,0.4548]
[1756015202586,19.039,4786.1,4786.0,0.9886]
[1756015202783,19.039,4786.1,4786.0,1.3155]
[1756015205893,0.002,4786.1,4786.0,1.3155]
[1756015206092,0.0009,4786.1,4786.0,1.3155]
[1756015206292,19.033,4786.3,4786.2,0.5385]
[1756015206587,19.033,4786.3,4786.2,1.3352]
[1756015206792,0.001,4786.3,4786.2,1.3352]
[1756015207088,19.0353,4786.5,4786.4,1.3352]
[1756015207702,0.0023,4786.5,4786.4,1.3352]
[1756015207889,19.033,4786.5,4786.4,1.75318]
[1756015208887,0.0023,4787.1,4787.0,0.41792]
[1756015209082,19.0323,4787.1,4787.0,0.41792]
[1756015209292,19.54816431,4787.1,4787.0,0.64612]
[1756015209492,19.54716431,4787.1,4787.0,0.64612]
[1756015209887,19.0313,4787.1,4787.0,0.64612]
[1756015210489,19.0313,4787.1,4787.0,0.87592]
[1756015210687,0.0023,4787.1,4787.0,0.87592]
[1756015210885,0.0023,4787.1,4787.0,1.25442]
[1756015211091,19.0293,4787.1,4787.0,1.25442]
[1756015213190,19.0253,4787.1,4787.0,1.75312]
[1756015214095,19.0253,4787.1,4787.0,1.41442]
[1756015214393,19.0253,4787.1,4787.0,0.64612]
[1756015215196,19.54184924,4787.1,4787.0,0.64612]
[1756015215993,19.54184924,4787.1,4787.0,0.41792]
[1756015216197,19.54184924,4787.1,4786.5,0.2282]
[1756015216401,0.0023,4786.4,4786.3,0.87599]
[1756015216586,19.0213,4786.4,4786.3,0.64619]
[1756015216789,19.0213,4786.4,4786.3,0.41799]
[1756015217191,19.0213,4786.4,4786.3,0.64619]
[1756015217795,0.0023,4786.4,4786.3,0.64619]
[1756015218100,0.0023,4786.4,4786.3,1.03069]
[1756015218295,19.0293,4786.4,4786.3,1.75319]
[1756015218500,19.54684871,4786.4,4786.3,1.75319]
[1756015219403,19.54584871,4786.4,4786.3,1.75319]
[1756015219697,19.54584871,4786.4,4786.3,0.64619]
[1756015219897,19.54584871,4786.4,4786.3,1.75319]
[1756015222804,19.54584871,4786.4,4786.3,1.41449]
[1756015223206,19.54584871,4786.4,4786.3,1.75319]
[1756015224904,19.53884871,4786.4,4786.3,1.75319]
[1756015225094,0.51754871,4786.4,4786.3,1.75319]
[1756015225294,3.6497,4786.8,4786.7,0.95646]
[1756015225500,23.18334265,4786.8,4786.7,1.75316]
[1756015225701,19.53594265,4786.8,4786.7,1.75316]
[1756015225896,0.51994265,4786.8,4786.7,1.75316]
[1756015226299,19.53364265,4786.8,4786.7,1.75316]
[1756015226504,19.53464265,4786.8,4786.7,1.75316]
[1756015227004,19.017,4786.8,4786.7,1.75316]
[1756015227206,19.0183,4786.8,4786.7,1.75316]
[1756015233309,0.0023,4786.8,4786.7,1.75316]
[1756015233507,19.0093,4786.8,4786.7,1.75316]
[1756015234110,0.0023,4786.8,4786.7,1.75316]
[1756015234510,19.0063,4786.8,4786.7,1.75316]
[1756015234906,19.0053,4786.8,4786.7,1.75316]
[1756015235206,3.1493,4787.2,4787.1,0.41792]
[1756015235399,22.67196222,4787.2,4787.1,0.96652]
[1756015235611,19.52266222,4787.2,4787.1,1.75462]
[1756015236005,19.52266222,4787.2,4787.1,1.42432]
[1756015236809,19.52266222,4787.2,4787.1,0.87572]
[1756015239513,19.52266222,4787.2,4787.1,0.64492]
[1756015239813,19.52266222,4787.2,4786.0,0.0208]
[1756015239814,0.0021,4787.0,4786.9,0.64494]
[1756015240016,0.0021,4787.0,4786.9,0.87574]
[1756015240513,0.0021,4787.0,4786.9,1.36304]
[1756015240909,0.0021,4787.0,4786.9,1.03274]
[1756015241517,0.0021,4787.0,4786.9,1.36304]
[1756015241919,0.0021,4787.0,4786.9,1.75464]
[1756015242118,18.9991,4787.0,4786.9,1.75464]
[1756015242522,18.9991,4787.0,4786.9,0.64494]
[1756015242720,19.51618653,4787.0,4786.7,0.227]
[1756015242919,0.0021,4786.4,4786.3,0.41799]
[1756015243127,19.93407285,4786.4,4786.3,0.227]
[1756015243327,0.0021,4786.2,4786.1,0.41801]
[1756015243524,0.42011,4786.2,4786.1,0.227]
[1756015243827,0.0021,4786.2,4786.1,0.4915359]
[1756015244021,0.51901023,4786.2,4786.1,0.4915359]
[1756015244221,0.0021,4786.2,4786.1,0.4915359]
[1756015245020,0.0021,4786.2,4786.1,0.49149823]
[1756015245228,0.51899079,4786.2,4786.1,0.72229823]
[1756015247129,0.51899079,4786.2,4786.1,0.49149823]
[1756015247829,0.51899079,4786.2,4786.1,0.72229823]
[1756015248331,0.51899079,4786.2,4786.1,0.87975558]
[1756015248522,0.51899079,4786.2,4786.1,1.21005558]
[1756015250230,0.51899079,4786.2,4786.1,1.60165558]
[1756015251533,0.51689079,4786.2,4786.1,1.60165558]
[1756015251934,18.998,4786.2,4786.1,1.60165558]
[1756015252131,0.0009,4787.0,4786.9,0.41793]
[1756015252328,0.51747965,4787.0,4786.9,1.75463]
[1756015252524,19.51547965,4787.0,4786.9,1.75463]
[1756015252729,19.51667965,4787.0,4786.9,1.75463]
[1756015252929,19.51547965,4787.0,4786.9,2.01950781]
[1756015253129,19.51457965,4787.0,4786.9,2.01950781]
[1756015255024,19.51547965,4787.0,4786.9,2.01949472]
[1756015256134,19.51667965,4787.0,4786.9,2.01949472]
[1756015258332,19.51667965,4787.0,4786.9,2.01950413]
[1756015258534,19.51547965,4787.0,4786.9,2.01950413]
[1756015258736,19.51457965,4787.0,4786.9,2.01950413]
[1756015259036,0.51867965,4787.0,4786.9,1.60157413]
[1756015259430,19.51567965,4787.0,4786.9,0.49187413]
[1756015259732,18.9991,4787.0,4786.9,0.49187413]
[1756015259943,19.51551398,4787.0,4786.9,0.49187413]
[1756015260336,19.51551398,4787.0,4786.9,1.28977413]
[1756015260538,19.51551398,4787.0,4786.9,1.60157413]
[1756015261228,19.51551398,4787.0,4786.9,0.72267413]
[1756015261739,19.51551398,4787.0,4786.9,1.60157413]
[1756015263842,19.51551398,4787.0,4786.9,1.60160948]
[1756015265942,19.51451398,4787.0,4786.9,1.60160948]
[1756015266249,18.9981,4787.0,4786.9,1.60160948]
[1756015267045,18.9981,4787.0,4786.9,1.3367]
[1756015267240,18.9981,4787.0,4786.9,1.60162592]
[1756015267642,18.9981,4787.0,4786.9,1.60163239]
[1756015269844,18.9981,4787.0,4786.9,1.27133239]
[1756015270046,19.51477502,4787.0,4786.9,0.87973239]
[1756015270342,19.51477502,4787.0,4786.9,0.72273239]
[1756015270542,19.51477502,4787.0,4786.9,0.72276032]
[1756015270946,19.51477502,4787.0,4786.9,0.49196032]
[1756015272044,19.51477502,4787.0,4786.9,0.26496032]
[1756015272244,0.002,4786.3,4786.2,0.2314]
[1756015272445,0.002,4786.3,4786.2,0.49640554]
[1756015272446,19.93164928,4786.3,4786.2,0.49640554]
[1756015272645,19.41499,4786.3,4786.2,0.49640554]
[1756015272844,19.93159843,4786.3,4786.2,0.49640554]
[1756015273050,19.51360843,4786.3,4786.2,0.73130554]
[1756015273246,19.51360843,4786.3,4786.2,0.9796]
[1756015273445,19.51360843,4786.3,4786.2,1.3591]
[1756015273846,18.995,4786.3,4786.2,1.7771]
[1756015274051,18.995,4786.4,4786.3,0.95199]
[1756015274248,18.995,4786.4,4786.3,1.77709]
[1756015276053,18.997,4786.4,4786.3,1.77709]
[1756015279357,18.9959,4786.4,4786.3,1.77709]
[1756015280155,18.997,4786.4,4786.3,1.77709]
[1756015281257,18.997,4786.4,4786.3,1.96035933]
[1756015285959,0.002,4787.1,4787.0,1.77702]
[1756015286158,19.51399142,4787.1,4787.0,1.77702]
[1756015286359,19.51399142,4787.1,4787.0,1.3591]
[1756015286953,0.002,4786.5,4786.4,0.4663]
[1756015287150,19.51299142,4786.5,4786.4,1.2067]
[1756015287954,19.51299142,4786.5,4786.4,0.8479]
[1756015288259,19.51299142,4786.5,4786.4,0.4663]
[1756015288450,19.51299142,4786.5,4786.4,0.2314]
[1756015291457,19.51379142,4786.5,4786.4,0.2314]
[1756015293763,19.51469142,4786.5,4786.4,0.2314]
[1756015295163,18.9977,4786.5,4786.4,0.2314]
[1756015295358,19.51502412,4786.5,4786.4,0.2314]
[1756015296265,19.51502412,4786.5,4786.4,0.466]
[1756015298163,0.4215,4786.2,4786.1,0.2396]
[1756015298475,0.0056,4785.8,4785.7,0.2396]
[1756015298767,0.0056,4785.6,4785.5,0.65766]
[1756015298967,0.0056,4785.6,4785.5,0.2396]
[1756015300258,0.0056,4785.6,4785.5,0.4742]
[1756015300465,0.0047,4785.6,4785.5,0.4742]
[1756015300661,0.0047,4785.6,4785.5,0.9929]
[1756015300862,1.7181,4785.6,4785.5,1.3836]
[1756015302871,1.7181,4785.6,4785.5,1.56679201]
[1756015303666,1.7134,4785.6,4785.5,1.56679201]
[1756015305567,1.7134,4785.6,4785.5,1.58759201]
[1756015305761,1.112,4785.6,4785.5,5.56679201]
[1756015306171,0.1542,4786.4,4786.3,0.96799]
[1756015306374,19.5074,4786.4,4786.3,1.80159]
[1756015306568,19.1482,4786.4,4786.3,1.80159]
[1756015306762,2.0432,4786.6,4786.5,1.80157]
[1756015309783,1.684,4786.6,4786.5,1.98469951]
[1756015313385,2.0432,4786.6,4786.5,1.98469951]
[1756015313681,2.4186,4786.6,4786.5,1.98469951]
[1756015315183,2.1974,4786.6,4786.5,1.98469951]
[1756015315575,1.684,4786.6,4786.5,1.98469951]
[1756015317275,1.684,4786.6,4786.5,1.80157]
[1756015317477,1.684,4786.6,4786.5,1.98459362]
[1756015317674,2.0432,4786.6,4786.5,1.98459362]
[1756015317879,2.647,4786.6,4786.5,1.98457922]
[1756015318785,2.647,4786.6,4786.5,1.20727]